[Event "Early-Titled-Tuesday-Blitz-August-29-2023"]
[Site "Chess.com"]
[Date "2023.08.29"]
[Round "8"]
[White "djano"]
[Black "seopie"]
[Result "1-0"]
[WhiteElo "2537"]
[BlackElo "2644"]
[TimeControl "180+1"]
[EndTime "9:23:39 PDT"]
[Termination "djano won by checkmate"]

1. e4 {[%clk 0:03:00.9]} 1... c5 {[%clk 0:02:59.7]} 2. Nc3 {[%clk 0:03:00.5]}
2... d6 {[%clk 0:03:00.4]} 3. f4 {[%clk 0:02:59.9]} 3... Nc6 {[%clk 0:02:59.8]}
4. Nf3 {[%clk 0:03:00.1]} 4... a6 {[%clk 0:02:59.8]} 5. g3 {[%clk 0:02:58.2]}
5... g6 {[%clk 0:02:59.5]} 6. Bg2 {[%clk 0:02:58.4]} 6... Bg7 {[%clk 0:03:00.4]}
7. O-O {[%clk 0:02:58.6]} 7... e6 {[%clk 0:03:00.5]} 8. a4 {[%clk 0:02:47.7]}
8... Nge7 {[%clk 0:03:00.2]} 9. d3 {[%clk 0:02:43.8]} 9... O-O {[%clk
0:03:00.3]} 10. h3 {[%clk 0:02:36.3]} 10... Rb8 {[%clk 0:02:59.3]} 11. g4 {[%clk
0:02:35]} 11... b5 {[%clk 0:02:59]} 12. axb5 {[%clk 0:02:34.9]} 12... axb5
{[%clk 0:02:59.9]} 13. Ne2 {[%clk 0:02:35.2]} 13... f5 {[%clk 0:02:58.8]} 14.
Ng3 {[%clk 0:02:32.6]} 14... b4 {[%clk 0:02:58.6]} 15. Rb1 {[%clk 0:02:26.1]}
15... Bd7 {[%clk 0:02:53.8]} 16. b3 {[%clk 0:02:24.6]} 16... Nd4 {[%clk
0:02:49.3]} 17. Nxd4 {[%clk 0:02:16.9]} 17... Bxd4+ {[%clk 0:02:50.2]} 18. Kh1
{[%clk 0:02:16.9]} 18... Nc6 {[%clk 0:02:47.1]} 19. g5 {[%clk 0:01:51.4]} 19...
Bg7 {[%clk 0:02:39.6]} 20. h4 {[%clk 0:01:47.3]} 20... h6 {[%clk 0:02:39.5]} 21.
exf5 {[%clk 0:01:37.7]} 21... exf5 {[%clk 0:02:39.5]} 22. h5 {[%clk 0:01:28.3]}
22... hxg5 {[%clk 0:02:34.4]} 23. hxg6 {[%clk 0:01:22]} 23... g4 {[%clk
0:02:32.7]} 24. Bd5+ {[%clk 0:01:09.8]} 24... Kh8 {[%clk 0:02:32.6]} 25. Kg2
{[%clk 0:01:08.9]} 25... Bd4 {[%clk 0:02:23.7]} 26. Rh1+ {[%clk 0:01:07.8]}
26... Kg7 {[%clk 0:02:23.9]} 27. Rh7+ {[%clk 0:01:07.8]} 27... Kxg6 {[%clk
0:02:24]} 28. Qh1 {[%clk 0:01:04.8]} 28... Bg7 {[%clk 0:02:18.5]} 29. Qh5+
{[%clk 0:01:01.9]} 29... Kf6 {[%clk 0:02:18.7]} 30. Qg5# {[%clk 0:01:00.7]} 1-0

[Event "Early-Titled-Tuesday-Blitz-August-29-2023"]
[Site "Chess.com"]
[Date "2023.08.29"]
[Round "8"]
[White "ajedrezhoy"]
[Black "leopato"]
[Result "0-1"]
[WhiteElo "2416"]
[BlackElo "2177"]
[TimeControl "180+1"]
[EndTime "9:23:45 PDT"]
[Termination "leopato won by resignation"]

1. c4 {[%clk 0:03:00.9]} 1... e5 {[%clk 0:02:59.8]} 2. Nc3 {[%clk 0:02:58.4]}
2... Nf6 {[%clk 0:02:58.9]} 3. Nf3 {[%clk 0:02:57.9]} 3... Nc6 {[%clk
0:02:58.6]} 4. e4 {[%clk 0:02:57.3]} 4... Bb4 {[%clk 0:02:57.9]} 5. d3 {[%clk
0:02:56.4]} 5... d6 {[%clk 0:02:53.6]} 6. a3 {[%clk 0:02:56.3]} 6... Bxc3+
{[%clk 0:02:51.8]} 7. bxc3 {[%clk 0:02:55.8]} 7... O-O {[%clk 0:02:49.5]} 8. Be2
{[%clk 0:02:55.9]} 8... Ne7 {[%clk 0:02:47.1]} 9. O-O {[%clk 0:02:55.4]} 9...
Ng6 {[%clk 0:02:47]} 10. g3 {[%clk 0:02:52.8]} 10... Bh3 {[%clk 0:02:43.2]} 11.
Re1 {[%clk 0:02:51.8]} 11... b6 {[%clk 0:02:39.4]} 12. Ng5 {[%clk 0:02:51.2]}
12... Bd7 {[%clk 0:02:37.6]} 13. h4 {[%clk 0:02:31.9]} 13... h6 {[%clk
0:02:36.3]} 14. Nf3 {[%clk 0:02:31.3]} 14... Ng4 {[%clk 0:02:21.3]} 15. h5
{[%clk 0:02:12.1]} 15... Ne7 {[%clk 0:02:15.7]} 16. Nh4 {[%clk 0:02:11.9]} 16...
f5 {[%clk 0:02:07.4]} 17. exf5 {[%clk 0:02:05.2]} 17... Nxf2 {[%clk 0:01:52.8]}
18. Kxf2 {[%clk 0:02:04]} 18... Nxf5 {[%clk 0:01:53.7]} 19. Nxf5 {[%clk
0:02:02.3]} 19... Bxf5 {[%clk 0:01:54]} 20. Kg2 {[%clk 0:01:57.5]} 20... Qd7
{[%clk 0:01:49.1]} 21. Rh1 {[%clk 0:01:56.9]} 21... Qc6+ {[%clk 0:01:44.6]} 22.
Bf3 {[%clk 0:01:56.2]} 22... e4 {[%clk 0:01:44.8]} 23. dxe4 {[%clk 0:01:43]}
23... Bxe4 {[%clk 0:01:45.7]} 24. Qd5+ {[%clk 0:01:41.3]} 24... Qxd5 {[%clk
0:01:45.4]} 25. cxd5 {[%clk 0:01:40.5]} 25... Bxf3+ {[%clk 0:01:45]} 26. Kh2
{[%clk 0:01:40.4]} 26... Bxh1 {[%clk 0:01:44.2]} 27. Kxh1 {[%clk 0:01:40.6]}
27... Rf1+ {[%clk 0:01:43.1]} 28. Kg2 {[%clk 0:01:40.6]} 28... Raf8 {[%clk
0:01:43.3]} 29. Bb2 {[%clk 0:01:40.3]} 29... R1f2+ {[%clk 0:01:42.9]} 0-1

[Event "Early-Titled-Tuesday-Blitz-August-29-2023"]
[Site "Chess.com"]
[Date "2023.08.29"]
[Round "8"]
[White "TrenerChos"]
[Black "LileKoridze"]
[Result "1-0"]
[WhiteElo "2575"]
[BlackElo "2349"]
[TimeControl "180+1"]
[EndTime "9:23:53 PDT"]
[Termination "TrenerChos won by resignation"]

1. d4 {[%clk 0:02:59.2]} 1... Nf6 {[%clk 0:02:59.8]} 2. Nf3 {[%clk 0:03:00.1]}
2... d5 {[%clk 0:02:59.8]} 3. g3 {[%clk 0:03:00]} 3... g6 {[%clk 0:02:57.3]} 4.
Bg2 {[%clk 0:03:00.9]} 4... Bg7 {[%clk 0:02:57.8]} 5. O-O {[%clk 0:03:00.1]}
5... O-O {[%clk 0:02:58.4]} 6. c4 {[%clk 0:02:59.8]} 6... c6 {[%clk 0:02:57.1]}
7. Qa4 {[%clk 0:03:00]} 7... Ne4 {[%clk 0:02:54.8]} 8. Nc3 {[%clk 0:02:59.4]}
8... Bf5 {[%clk 0:02:35.1]} 9. Qb3 {[%clk 0:02:58.1]} 9... Nxc3 {[%clk
0:02:34.3]} 10. bxc3 {[%clk 0:02:56]} 10... b6 {[%clk 0:02:34.1]} 11. cxd5
{[%clk 0:02:55.1]} 11... cxd5 {[%clk 0:02:33.8]} 12. Ng5 {[%clk 0:02:55]} 12...
e6 {[%clk 0:02:31.5]} 13. e4 {[%clk 0:02:55.2]} 13... dxe4 {[%clk 0:02:31.1]}
14. Nxe4 {[%clk 0:02:55.5]} 14... Nd7 {[%clk 0:02:29.2]} 15. Ba3 {[%clk
0:02:53.4]} 15... Bxe4 {[%clk 0:02:25.1]} 16. Bxe4 {[%clk 0:02:53.2]} 16... Re8
{[%clk 0:02:24.7]} 17. Bxa8 {[%clk 0:02:53]} 17... Qxa8 {[%clk 0:02:25.6]} 18.
Rfe1 {[%clk 0:02:52]} 18... Nf6 {[%clk 0:02:25.1]} 19. c4 {[%clk 0:02:52.1]}
19... Ne4 {[%clk 0:02:20.7]} 20. Rad1 {[%clk 0:02:51.6]} 20... Ng5 {[%clk
0:02:19.4]} 21. d5 {[%clk 0:02:50.9]} 21... exd5 {[%clk 0:02:15.8]} 22. cxd5
{[%clk 0:02:51.8]} 22... Rxe1+ {[%clk 0:02:01.3]} 23. Rxe1 {[%clk 0:02:52.7]}
23... Bd4 {[%clk 0:01:57.7]} 24. Kg2 {[%clk 0:02:47.4]} 24... Qc8 {[%clk
0:01:56.1]} 25. Qd3 {[%clk 0:02:38.4]} 25... Qh3+ {[%clk 0:01:53.8]} 26. Kg1
{[%clk 0:02:38.3]} 26... h6 {[%clk 0:01:07.6]} 27. Bc1 {[%clk 0:02:27.8]} 27...
Bxf2+ {[%clk 0:00:54.2]} 28. Kxf2 {[%clk 0:02:26.6]} 28... Qxh2+ {[%clk
0:00:54.7]} 29. Kf1 {[%clk 0:02:26.3]} 29... Qh3+ {[%clk 0:00:51.2]} 30. Kg1
{[%clk 0:02:21.6]} 1-0

[Event "Early-Titled-Tuesday-Blitz-August-29-2023"]
[Site "Chess.com"]
[Date "2023.08.29"]
[Round "8"]
[White "ahkashefi2800"]
[Black "vladoboch"]
[Result "1-0"]
[WhiteElo "2591"]
[BlackElo "2442"]
[TimeControl "180+1"]
[EndTime "9:24:09 PDT"]
[Termination "ahkashefi2800 won by resignation"]

1. d4 {[%clk 0:01:57]} 1... Nf6 {[%clk 0:02:59.2]} 2. Nf3 {[%clk 0:01:56.8]}
2... g6 {[%clk 0:02:58.9]} 3. g3 {[%clk 0:01:55.8]} 3... Bg7 {[%clk 0:02:59.4]}
4. Bg2 {[%clk 0:01:55.9]} 4... O-O {[%clk 0:03:00.3]} 5. O-O {[%clk 0:01:56.7]}
5... d6 {[%clk 0:03:01]} 6. b3 {[%clk 0:01:57.6]} 6... Nc6 {[%clk 0:03:01.8]} 7.
Bb2 {[%clk 0:01:58.5]} 7... Re8 {[%clk 0:02:56.1]} 8. c4 {[%clk 0:01:55.8]} 8...
Bg4 {[%clk 0:02:53.1]} 9. Nc3 {[%clk 0:01:52.6]} 9... e5 {[%clk 0:02:52.3]} 10.
dxe5 {[%clk 0:01:50.8]} 10... dxe5 {[%clk 0:02:53.2]} 11. Nd5 {[%clk 0:01:49.1]}
11... Nxd5 {[%clk 0:02:49.2]} 12. cxd5 {[%clk 0:01:48.6]} 12... e4 {[%clk
0:02:43.2]} 13. Bxg7 {[%clk 0:01:44]} 13... exf3 {[%clk 0:02:43.1]} 14. exf3
{[%clk 0:01:37.7]} 14... Kxg7 {[%clk 0:02:24.2]} 15. dxc6 {[%clk 0:01:25.9]}
15... Bc8 {[%clk 0:02:15.2]} 16. f4 {[%clk 0:01:22]} 16... Rb8 {[%clk
0:02:11.7]} 17. Re1 {[%clk 0:01:17]} 17... bxc6 {[%clk 0:02:03.3]} 18. Rxe8
{[%clk 0:01:16.6]} 18... Qxe8 {[%clk 0:02:03.4]} 19. Qd4+ {[%clk 0:01:17]} 19...
Kg8 {[%clk 0:02:02.1]} 20. Qxa7 {[%clk 0:01:15.7]} 20... Bf5 {[%clk 0:01:57]}
21. Qxc7 {[%clk 0:01:13.1]} 21... Rc8 {[%clk 0:01:55.2]} 22. Qe5 {[%clk
0:01:12.9]} 22... Qd7 {[%clk 0:01:48.5]} 23. a4 {[%clk 0:01:01.7]} 23... c5
{[%clk 0:01:46.7]} 24. a5 {[%clk 0:01:00]} 24... Qb5 {[%clk 0:01:44.6]} 25. a6
{[%clk 0:00:59.1]} 1-0

[Event "Early-Titled-Tuesday-Blitz-August-29-2023"]
[Site "Chess.com"]
[Date "2023.08.29"]
[Round "8"]
[White "Daniel_Salinas"]
[Black "assezde36"]
[Result "0-1"]
[WhiteElo "2327"]
[BlackElo "2793"]
[TimeControl "180+1"]
[EndTime "9:24:15 PDT"]
[Termination "assezde36 won by resignation"]

1. d4 {[%clk 0:03:00.9]} 1... Nf6 {[%clk 0:02:58.4]} 2. c4 {[%clk 0:03:01]} 2...
c5 {[%clk 0:02:58.6]} 3. d5 {[%clk 0:02:59.2]} 3... b5 {[%clk 0:02:59]} 4. cxb5
{[%clk 0:02:59.9]} 4... a6 {[%clk 0:02:59.6]} 5. e3 {[%clk 0:02:58.8]} 5... g6
{[%clk 0:02:58.6]} 6. Nc3 {[%clk 0:02:55.5]} 6... Bg7 {[%clk 0:02:59.2]} 7. a4
{[%clk 0:02:55.3]} 7... O-O {[%clk 0:02:59.6]} 8. e4 {[%clk 0:02:55.6]} 8... Bb7
{[%clk 0:02:58.8]} 9. Nf3 {[%clk 0:02:54.9]} 9... e6 {[%clk 0:02:59.2]} 10. Be2
{[%clk 0:02:51.3]} 10... exd5 {[%clk 0:02:57.9]} 11. exd5 {[%clk 0:02:52.2]}
11... axb5 {[%clk 0:02:56.9]} 12. Bxb5 {[%clk 0:02:43.6]} 12... Re8+ {[%clk
0:02:57.2]} 13. Be3 {[%clk 0:02:30.5]} 13... Ng4 {[%clk 0:02:54.9]} 14. O-O
{[%clk 0:02:30.5]} 14... Rxe3 {[%clk 0:02:54.6]} 15. fxe3 {[%clk 0:02:31.4]}
15... Nxe3 {[%clk 0:02:55.4]} 16. Qd2 {[%clk 0:02:17.9]} 16... Nxf1 {[%clk
0:02:55.7]} 17. Rxf1 {[%clk 0:02:18.8]} 17... Na6 {[%clk 0:02:56.2]} 18. Qf2
{[%clk 0:02:09.9]} 18... d6 {[%clk 0:02:46.5]} 19. Kh1 {[%clk 0:02:04.3]} 19...
Nb4 {[%clk 0:02:43.2]} 20. Nd2 {[%clk 0:01:59.8]} 20... Qe7 {[%clk 0:02:39.2]}
21. Nc4 {[%clk 0:01:58.9]} 21... Rf8 {[%clk 0:02:19.2]} 22. a5 {[%clk
0:01:51.2]} 22... Nxd5 {[%clk 0:02:14.5]} 23. a6 {[%clk 0:01:47.1]} 23... Nxc3
{[%clk 0:02:09.2]} 24. bxc3 {[%clk 0:01:48]} 24... Ba8 {[%clk 0:02:09.7]} 25.
Nb6 {[%clk 0:01:20.9]} 25... Be4 {[%clk 0:02:09.4]} 26. Bc4 {[%clk 0:01:15.5]}
26... Qa7 {[%clk 0:02:07.1]} 27. Rb1 {[%clk 0:00:52.6]} 27... Bxb1 {[%clk
0:02:06.6]} 0-1

[Event "Early-Titled-Tuesday-Blitz-August-29-2023"]
[Site "Chess.com"]
[Date "2023.08.29"]
[Round "8"]
[White "tylityli"]
[Black "atalz0"]
[Result "0-1"]
[WhiteElo "2354"]
[BlackElo "2481"]
[TimeControl "180+1"]
[EndTime "9:24:16 PDT"]
[Termination "atalz0 won by resignation"]

1. d4 {[%clk 0:02:56.5]} 1... Nf6 {[%clk 0:02:59.8]} 2. c4 {[%clk 0:02:56.3]}
2... e6 {[%clk 0:03:00.1]} 3. Nc3 {[%clk 0:02:50.8]} 3... Bb4 {[%clk 0:02:59.5]}
4. e3 {[%clk 0:02:49.4]} 4... O-O {[%clk 0:02:57.7]} 5. Ne2 {[%clk 0:02:50.3]}
5... Re8 {[%clk 0:02:56.8]} 6. a3 {[%clk 0:02:49]} 6... Bf8 {[%clk 0:02:57.5]}
7. Ng3 {[%clk 0:02:43.6]} 7... d5 {[%clk 0:02:56.2]} 8. cxd5 {[%clk 0:02:40.2]}
8... exd5 {[%clk 0:02:57.1]} 9. Bd3 {[%clk 0:02:38.3]} 9... b6 {[%clk
0:02:54.6]} 10. O-O {[%clk 0:02:38.2]} 10... Bb7 {[%clk 0:02:54.9]} 11. b4
{[%clk 0:02:36.8]} 11... Nbd7 {[%clk 0:02:52.1]} 12. Qc2 {[%clk 0:02:35.7]}
12... c6 {[%clk 0:02:44]} 13. Bb2 {[%clk 0:02:32.7]} 13... a5 {[%clk 0:02:42.5]}
14. b5 {[%clk 0:02:26]} 14... c5 {[%clk 0:02:41.6]} 15. Bf5 {[%clk 0:02:16]}
15... g6 {[%clk 0:02:17.5]} 16. Bh3 {[%clk 0:02:11]} 16... Rc8 {[%clk
0:02:10.6]} 17. Qd3 {[%clk 0:02:06.8]} 17... Rc7 {[%clk 0:01:57.3]} 18. Rfd1
{[%clk 0:01:48.5]} 18... Bg7 {[%clk 0:01:50.6]} 19. Na4 {[%clk 0:01:46.6]} 19...
c4 {[%clk 0:01:40.6]} 20. Qd2 {[%clk 0:01:34.9]} 20... h5 {[%clk 0:01:16.1]} 21.
f3 {[%clk 0:01:23.3]} 21... h4 {[%clk 0:01:15.6]} 22. Ne2 {[%clk 0:01:23.1]}
22... Qe7 {[%clk 0:01:13]} 23. Kf2 {[%clk 0:01:18.3]} 23... Bh6 {[%clk
0:01:12.5]} 24. f4 {[%clk 0:01:18]} 24... Ne4+ {[%clk 0:01:12.1]} 0-1

[Event "Early-Titled-Tuesday-Blitz-August-29-2023"]
[Site "Chess.com"]
[Date "2023.08.29"]
[Round "8"]
[White "Colombiano07"]
[Black "124chess"]
[Result "1-0"]
[WhiteElo "2389"]
[BlackElo "2503"]
[TimeControl "180+1"]
[EndTime "9:24:16 PDT"]
[Termination "Colombiano07 won by checkmate"]

1. d4 {[%clk 0:03:00.9]} 1... g6 {[%clk 0:02:59.6]} 2. c4 {[%clk 0:03:00]} 2...
Bg7 {[%clk 0:03:00.5]} 3. Nc3 {[%clk 0:03:00.8]} 3... c5 {[%clk 0:03:01]} 4. d5
{[%clk 0:02:59.8]} 4... d6 {[%clk 0:03:01.6]} 5. e4 {[%clk 0:02:58.8]} 5... e6
{[%clk 0:03:02.2]} 6. Nf3 {[%clk 0:02:58.8]} 6... Ne7 {[%clk 0:03:02.8]} 7. Be2
{[%clk 0:02:57.6]} 7... a6 {[%clk 0:03:03.4]} 8. O-O {[%clk 0:02:58.2]} 8... h6
{[%clk 0:03:02.8]} 9. Be3 {[%clk 0:02:57.5]} 9... O-O {[%clk 0:03:02.7]} 10. Qd2
{[%clk 0:02:57.9]} 10... g5 {[%clk 0:03:03.3]} 11. Rad1 {[%clk 0:02:55.7]} 11...
e5 {[%clk 0:03:02.1]} 12. Ne1 {[%clk 0:02:52.7]} 12... f5 {[%clk 0:03:02]} 13.
exf5 {[%clk 0:02:52.6]} 13... Nxf5 {[%clk 0:03:02.9]} 14. Ne4 {[%clk 0:02:51.5]}
14... Nd7 {[%clk 0:03:02.8]} 15. Nd3 {[%clk 0:02:50.2]} 15... Nf6 {[%clk
0:03:03.1]} 16. f3 {[%clk 0:02:46.8]} 16... Bd7 {[%clk 0:02:58.7]} 17. Rf2
{[%clk 0:02:43.4]} 17... Qe7 {[%clk 0:02:59]} 18. Bf1 {[%clk 0:02:40.2]} 18...
b5 {[%clk 0:02:59.1]} 19. b3 {[%clk 0:02:37.2]} 19... b4 {[%clk 0:02:59.5]} 20.
Re1 {[%clk 0:02:31.9]} 20... a5 {[%clk 0:02:59.7]} 21. Nexc5 {[%clk 0:02:06.5]}
21... dxc5 {[%clk 0:02:56.4]} 22. Bxc5 {[%clk 0:02:07.4]} 22... Qd8 {[%clk
0:02:51.5]} 23. Bxf8 {[%clk 0:02:08.3]} 23... Bxf8 {[%clk 0:02:50.8]} 24. Nxe5
{[%clk 0:02:06.3]} 24... Bc5 {[%clk 0:02:50.3]} 25. Bd3 {[%clk 0:02:02.9]} 25...
Nh4 {[%clk 0:02:46.5]} 26. Kh1 {[%clk 0:02:00.4]} 26... Bxf2 {[%clk 0:02:45.2]}
27. Qxf2 {[%clk 0:01:58.9]} 27... Bf5 {[%clk 0:02:40.5]} 28. g3 {[%clk
0:01:53.3]} 28... Bxd3 {[%clk 0:02:40.3]} 29. gxh4 {[%clk 0:01:54.2]} 29... Bf5
{[%clk 0:02:37.2]} 30. hxg5 {[%clk 0:01:51.9]} 30... hxg5 {[%clk 0:02:38.1]} 31.
Nc6 {[%clk 0:01:50.3]} 31... Qd7 {[%clk 0:02:33.8]} 32. Qg3 {[%clk 0:01:50.9]}
32... g4 {[%clk 0:02:32.1]} 33. Qf4 {[%clk 0:01:48.7]} 33... Re8 {[%clk
0:02:15.9]} 34. Rxe8+ {[%clk 0:01:46.8]} 34... Qxe8 {[%clk 0:02:16.8]} 35. Qxf5
{[%clk 0:01:41.9]} 35... Qe1+ {[%clk 0:02:16.6]} 36. Kg2 {[%clk 0:01:42]} 36...
Qe2+ {[%clk 0:02:13.8]} 37. Kg3 {[%clk 0:01:38.8]} 37... Qe1+ {[%clk 0:02:08.8]}
38. Kf4 {[%clk 0:01:36.4]} 38... Qd2+ {[%clk 0:01:58.2]} 39. Ke5 {[%clk
0:01:34.2]} 39... Nh7 {[%clk 0:01:49.2]} 40. Ne7+ {[%clk 0:01:31]} 40... Kh8
{[%clk 0:01:47.2]} 41. Qc8+ {[%clk 0:01:27.7]} 41... Kg7 {[%clk 0:01:47.5]} 42.
Qg8+ {[%clk 0:01:26.7]} 42... Kh6 {[%clk 0:01:47.9]} 43. Qg6# {[%clk 0:01:26.5]}
1-0

[Event "Early-Titled-Tuesday-Blitz-August-29-2023"]
[Site "Chess.com"]
[Date "2023.08.29"]
[Round "8"]
[White "AdvanceGuard4"]
[Black "Mikhail_Bryakin"]
[Result "1/2-1/2"]
[WhiteElo "2644"]
[BlackElo "2826"]
[TimeControl "180+1"]
[EndTime "9:24:20 PDT"]
[Termination "Game drawn by repetition"]

1. d4 {[%clk 0:03:00.9]} 1... g6 {[%clk 0:02:52.2]} 2. e4 {[%clk 0:03:00.3]}
2... Bg7 {[%clk 0:02:52.8]} 3. Bc4 {[%clk 0:03:00.8]} 3... c6 {[%clk 0:02:52.2]}
4. Nf3 {[%clk 0:03:00.6]} 4... d5 {[%clk 0:02:52.8]} 5. exd5 {[%clk 0:02:58.4]}
5... cxd5 {[%clk 0:02:53.7]} 6. Bd3 {[%clk 0:02:55.4]} 6... Nc6 {[%clk
0:02:54.6]} 7. c3 {[%clk 0:02:55.6]} 7... Bf5 {[%clk 0:02:54.1]} 8. Bxf5 {[%clk
0:02:54]} 8... gxf5 {[%clk 0:02:55]} 9. Bf4 {[%clk 0:02:52.6]} 9... e6 {[%clk
0:02:44.5]} 10. Qb3 {[%clk 0:02:49.1]} 10... Qc8 {[%clk 0:02:41.8]} 11. Na3
{[%clk 0:02:27.8]} 11... a6 {[%clk 0:02:40.9]} 12. c4 {[%clk 0:02:24.2]} 12...
Nge7 {[%clk 0:02:39.5]} 13. O-O {[%clk 0:02:03.2]} 13... O-O {[%clk 0:02:37.2]}
14. Rad1 {[%clk 0:01:57.7]} 14... Na5 {[%clk 0:02:27.4]} 15. Qb4 {[%clk
0:01:56.3]} 15... Nec6 {[%clk 0:02:27.2]} 16. Qd2 {[%clk 0:01:43.8]} 16... Nxc4
{[%clk 0:02:22.8]} 17. Nxc4 {[%clk 0:01:43.6]} 17... dxc4 {[%clk 0:02:23.7]} 18.
Bh6 {[%clk 0:01:41.1]} 18... Qd8 {[%clk 0:02:21]} 19. Bxg7 {[%clk 0:01:31.3]}
19... Kxg7 {[%clk 0:02:21.9]} 20. d5 {[%clk 0:01:00.5]} 20... exd5 {[%clk
0:02:13.8]} 21. Qf4 {[%clk 0:01:00.2]} 21... Qd7 {[%clk 0:02:06.3]} 22. Qg5+
{[%clk 0:00:57.6]} 22... Kh8 {[%clk 0:02:06.2]} 23. Qf6+ {[%clk 0:00:57.9]}
23... Kg8 {[%clk 0:02:06.8]} 24. Qg5+ {[%clk 0:00:33.9]} 24... Kh8 {[%clk
0:02:06.8]} 25. Qf6+ {[%clk 0:00:34.4]} 25... Kg8 {[%clk 0:02:07.3]} 26. Qg5+
{[%clk 0:00:24.2]} 26... Kh8 {[%clk 0:02:07.7]} 1/2-1/2

[Event "Early-Titled-Tuesday-Blitz-August-29-2023"]
[Site "Chess.com"]
[Date "2023.08.29"]
[Round "8"]
[White "tteshan"]
[Black "Juicy_Fork"]
[Result "0-1"]
[WhiteElo "2569"]
[BlackElo "2444"]
[TimeControl "180+1"]
[EndTime "9:24:22 PDT"]
[Termination "Juicy_Fork won by resignation"]

1. e4 {[%clk 0:03:00.9]} 1... e5 {[%clk 0:02:54.1]} 2. Nf3 {[%clk 0:03:01]} 2...
Nc6 {[%clk 0:02:52.9]} 3. Bb5 {[%clk 0:03:01.2]} 3... a6 {[%clk 0:02:52.1]} 4.
Ba4 {[%clk 0:03:01.4]} 4... d6 {[%clk 0:02:49.4]} 5. O-O {[%clk 0:03:00.4]} 5...
Bd7 {[%clk 0:02:48.8]} 6. Re1 {[%clk 0:02:59.6]} 6... g6 {[%clk 0:02:48.8]} 7.
c4 {[%clk 0:02:55.9]} 7... Bg7 {[%clk 0:02:43.1]} 8. Nc3 {[%clk 0:02:55]} 8...
Nge7 {[%clk 0:02:36.2]} 9. d3 {[%clk 0:02:39.1]} 9... O-O {[%clk 0:02:29.2]} 10.
Bg5 {[%clk 0:02:33.5]} 10... h6 {[%clk 0:02:26.2]} 11. Bxc6 {[%clk 0:02:22.3]}
11... bxc6 {[%clk 0:02:24.9]} 12. Be3 {[%clk 0:02:16.8]} 12... f5 {[%clk
0:02:19.3]} 13. exf5 {[%clk 0:01:43.4]} 13... gxf5 {[%clk 0:02:11.3]} 14. d4
{[%clk 0:01:28.8]} 14... f4 {[%clk 0:02:09.2]} 15. Bc1 {[%clk 0:01:28.6]} 15...
Ng6 {[%clk 0:01:57.6]} 16. dxe5 {[%clk 0:01:23.4]} 16... dxe5 {[%clk 0:01:58.5]}
17. Qd3 {[%clk 0:01:20]} 17... Qe8 {[%clk 0:01:44.5]} 18. Bd2 {[%clk 0:01:03.4]}
18... Bf5 {[%clk 0:01:42.6]} 19. Qe2 {[%clk 0:00:56.6]} 19... Rd8 {[%clk
0:01:37.5]} 20. Rad1 {[%clk 0:00:56]} 20... Bd3 {[%clk 0:01:35]} 0-1

[Event "Early-Titled-Tuesday-Blitz-August-29-2023"]
[Site "Chess.com"]
[Date "2023.08.29"]
[Round "8"]
[White "amanjazu"]
[Black "HajiyevKanan"]
[Result "1-0"]
[WhiteElo "2337"]
[BlackElo "2479"]
[TimeControl "180+1"]
[EndTime "9:24:34 PDT"]
[Termination "amanjazu won by resignation"]

1. f4 {[%clk 0:03:00.9]} 1... c6 {[%clk 0:03:00.5]} 2. Nf3 {[%clk 0:03:00.1]}
2... d6 {[%clk 0:03:01.2]} 3. g3 {[%clk 0:03:00.5]} 3... g6 {[%clk 0:03:01.8]}
4. Bg2 {[%clk 0:03:01.1]} 4... Bg7 {[%clk 0:03:02.7]} 5. O-O {[%clk 0:03:02]}
5... h5 {[%clk 0:03:02.4]} 6. d3 {[%clk 0:03:01.6]} 6... Bg4 {[%clk 0:03:02.1]}
7. h3 {[%clk 0:02:57.4]} 7... Bxf3 {[%clk 0:02:56.5]} 8. Bxf3 {[%clk 0:02:58.3]}
8... Nd7 {[%clk 0:02:56.6]} 9. e4 {[%clk 0:02:57.7]} 9... e5 {[%clk 0:02:56.9]}
10. Nc3 {[%clk 0:02:58.2]} 10... h4 {[%clk 0:02:55.8]} 11. g4 {[%clk 0:02:50.7]}
11... exf4 {[%clk 0:02:53.3]} 12. Kg2 {[%clk 0:02:35.5]} 12... g5 {[%clk
0:02:52.1]} 13. d4 {[%clk 0:02:34.9]} 13... Ne7 {[%clk 0:02:44.7]} 14. e5 {[%clk
0:02:28.8]} 14... dxe5 {[%clk 0:02:41.5]} 15. Ne4 {[%clk 0:02:29.2]} 15... exd4
{[%clk 0:02:11.6]} 16. Nxg5 {[%clk 0:02:17.8]} 16... Nd5 {[%clk 0:02:08.9]} 17.
Bxd5 {[%clk 0:02:13.2]} 17... Qxg5 {[%clk 0:02:06]} 18. Re1+ {[%clk 0:02:12.8]}
18... Be5 {[%clk 0:01:57.6]} 19. Be4 {[%clk 0:01:26.5]} 19... O-O-O {[%clk
0:01:51.2]} 20. Bf5 {[%clk 0:01:25.3]} 20... Kb8 {[%clk 0:01:51.8]} 21. Qf3
{[%clk 0:01:18.4]} 21... Rhg8 {[%clk 0:01:50.8]} 22. Bxd7 {[%clk 0:01:16.8]}
22... Rxd7 {[%clk 0:01:50.6]} 23. Rxe5 {[%clk 0:01:17]} 23... Qxe5 {[%clk
0:01:50.3]} 24. Bxf4 {[%clk 0:01:17.4]} 24... Re8 {[%clk 0:01:43.7]} 25. Re1
{[%clk 0:01:14.5]} 25... f6 {[%clk 0:01:37.8]} 26. Bxe5+ {[%clk 0:01:11.3]}
26... fxe5 {[%clk 0:01:38.7]} 27. Qf5 {[%clk 0:01:10.9]} 27... Rd5 {[%clk
0:01:36.5]} 28. g5 {[%clk 0:01:06]} 28... Ka8 {[%clk 0:01:23.9]} 29. g6 {[%clk
0:01:05.8]} 29... e4 {[%clk 0:01:24.4]} 30. Rxe4 {[%clk 0:01:05.8]} 1-0